[Event "NOR-ch Various 2019"]
[Site "Larvik"]
[Date "2019.07.11"]
[Round "7.35"]
[White "Sorgjerd, Jan"]
[Black "Esbensen, Arnt"]
[Result "0-1"]
[ECO "D37"]
[WhiteElo "2033"]
[BlackElo "2153"]
[Annotator "NA"]
[PlyCount "130"]
[EventDate "2019.07.06"]
[EventType "swiss"]
[EventCountry "NOR"]
[SourceTitle "playchess.com"]
[Source "ChessBase"]
[SourceQuality "1"]
[TimeControl "40/5400+30:1800+30"]

1. d4 {[%emt 0:00:00]} d5 {[%emt 0:00:00]} 2. Nf3 {[%emt 0:00:00]} Nf6 {[%emt 0:00:02]} 3. c4 {[%emt 0:01:53]} e6 {[%emt 0:00:10]} 4. Nc3 {[%emt 0:00:17]} Be7 {[%emt 0:00:18]} 5. Bf4 {[%emt 0:01:11]} O-O {[%emt 0:01:16]} 6. e3 {[%emt 0:00:16]} b6 {[%emt 0:01:19]} 7. cxd5 {[%emt 0:01:39]} Nxd5 {[%emt 0:00:30]} 8. Bg3 {[%emt 0:04:24]} Bb7 {[%emt 0:04:06]} 9. Be2 {[%emt 0:06:46]} Nd7 {[%emt 0:00:39]} 10. O-O {[%emt 0:02:21]} c5 {[%emt 0:00:57]} 11. Rc1 {[%emt 0:01:22]} a6 {[%emt 0:05:15]} 12. Ne5 {[%emt 0:06:54]} cxd4 {[%emt 0:13:39]} 13. Nxd5 {[%emt 0:10:19]} Bxd5 {[%emt 0:01:36]} 14. Nxd7 {[%emt 0:00:44]} Qxd7 {[%emt 0:00:55]} 15. Qxd4 {[%emt 0:06:36]} Bc5 {[%emt 0:02:48]} 16. Qd2 {[%emt 0:09:51]} Qe7 {[%emt 0:09:34]} 17. a3 {[%emt 0:02:39]} Rfd8 {[%emt 0:00:35]} 18. Qc3 {[%emt 0:03:35]} Qb7 {[%emt 0:10:28]} 19. b4 {[%emt 0:04:44]} Bf8 {[%emt 0:00:24]} 20. f3 {[%emt 0:01:03]} Rac8 {[%emt 0:04:47]} 21. Qb2 {[%emt 0:00:43]} b5 {[%emt 0:00:38]} 22. Rfd1 {[%emt 0:03:34]} Qb6 {[%emt 0:03:14]} 23. Bf2 {[%emt 0:00:47]} Bc4 {[%emt 0:00:46]} 24. e4 {[%emt 0:05:08]} Rxd1+ {[%emt 0:00:45]} 25. Rxd1 {[%emt 0:00:38]} Qc7 {[%emt 0:00:35]} 26. Bg3 {[%emt 0:00:26]} Qe7 {[%emt 0:00:41]} 27. Rc1 {[%emt 0:02:31]} a5 {[%emt 0:01:16]} 28. Be1 {[%emt 0:04:08]} axb4 {[%emt 0:02:14]} 29. axb4 {[%emt 0:03:07]} Qg5 {[%emt 0:06:19]} 30. Bd2 {[%emt 0:01:55]} Qd8 {[%emt 0:00:14]} 31. Be1 {[%emt 0:06:01]} h6 {[%emt 0:03:25]} 32. g3 {[%emt 0:01:05]} h5 {[%emt 0:10:56]} 33. Bxc4 {[%emt 0:03:25]} bxc4 {[%emt 0:00:16]} 34. Bc3 {[%emt 0:01:35]} h4 {[%emt 0:00:38]} 35. Kg2 {[%emt 0:01:01]} Qd3 {[%emt 0:02:45]} 36. Qd2 {[%emt 0:01:40]} h3+ {[%emt 0:00:42]} 37. Kf2 {[%emt 0:00:36]} Rd8 {[%emt 0:01:51]} 38. Rd1 {[%emt 0:02:02]} Qxd2+ {[%emt 0:00:13]} 39. Rxd2 {[%emt 0:00:07]} Ra8 {[%emt 0:00:53]} 40. g4 {[%emt 0:00:52]} Ra3 {[%emt 0:02:32]} 41. Rc2 {[%emt 0:31:10]} Rb3 {[%emt 0:30:30]} 42. Kg3 {[%emt 0:01:12]} Bxb4 {[%emt 0:00:44]} 43. Bxb4 {[%emt 0:00:07]} Rxb4 {[%emt 0:00:07]} 44. Kxh3 {[%emt 0:00:25]} Kf8 {[%emt 0:00:54]} 45. Kg3 {[%emt 0:00:37]} Ke7 {[%emt 0:00:41]} 46. e5 {[%emt 0:00:00]} Kd7 {[%emt 0:00:00]} 47. Kf4 {[%emt 0:00:00]} Kc6 {[%emt 0:00:00]} 48. Ke4 {[%emt 0:00:00]} Kc5 {[%emt 0:00:00]} 49. h4 {[%emt 0:00:00]} Rb1 {[%emt 0:00:00]} 50. Rd2 {[%emt 0:00:00]} Re1+ {[%emt 0:00:00]} 51. Kf4 {[%emt 0:00:00]} c3 {[%emt 0:00:00]} 52. Rd8 {[%emt 0:00:00]} Kc4 {[%emt 0:00:00]} 53. Rc8+ {[%emt 0:00:00]} Kd3 {[%emt 0:00:00]} 54. Rd8+ {[%emt 0:00:00]} Ke2 {[%emt 0:00:00]} 55. Rc8 {[%emt 0:00:00]} Rc1 {[%emt 0:00:00]} 56. h5 {[%emt 0:00:00]} Kd2 {[%emt 0:00:00]} 57. Rd8+ {[%emt 0:00:00]} Kc2 {[%emt 0:00:00]} 58. g5 {[%emt 0:00:00]} Rd1 {[%emt 0:00:00]} 59. Rc8 {[%emt 0:00:00]} Rh1 {[%emt 0:00:00]} 60. Kg4 {[%emt 0:00:00]} Kd2 {[%emt 0:00:00]} 61. Rd8+ {[%emt 0:00:17]} Kc1 {[%emt 0:00:00]} 62. Rh8 {[%emt 0:03:24]} c2 {[%emt 0:00:00]} 63. h6 {[%emt 0:00:37]} gxh6 {[%emt 0:00:00]} 64. gxh6 {[%emt 0:00:34]} Kd2 {[%emt 0:00:15]} 65. Rd8+ {[%emt 0:01:51]} Ke3 {[%emt 0:00:53]} 0-1

[Event "NOR-ch Various 2019"]
[Site "Larvik"]
[Date "2019.07.11"]
[Round "7.36"]
[White "Thanke, Bror"]
[Black "Laverton, Christian"]
[Result "1-0"]
[ECO "B23"]
[WhiteElo "2191"]
[BlackElo "2115"]
[Annotator "NA"]
[PlyCount "71"]
[EventDate "2019.07.06"]
[EventType "swiss"]
[EventCountry "NOR"]
[SourceTitle "playchess.com"]
[Source "ChessBase"]
[SourceQuality "1"]
[TimeControl "40/5400+30:1800+30"]

1. e4 {[%emt 0:00:00]} c5 {[%emt 0:00:00]} 2. Nc3 {[%emt 0:00:00]} e6 {[%emt 0:00:06]} 3. Nge2 {[%emt 0:00:00]} d5 {[%emt 0:02:27]} 4. d4 {[%emt 0:00:36]} Nf6 {[%emt 0:07:04]} 5. Bg5 {[%emt 0:02:06]} dxe4 {[%emt 0:07:27]} 6. Bxf6 {[%emt 0:08:31]} gxf6 {[%emt 0:03:07]} 7. Nxe4 {[%emt 0:00:39]} f5 {[%emt 0:05:17]} 8. Nxc5 {[%emt 0:00:59]} Nc6 {[%emt 0:02:43]} 9. Nb3 {[%emt 0:01:35]} Bg7 {[%emt 0:03:55]} 10. c3 {[%emt 0:04:02]} O-O {[%emt 0:01:55]} 11. Nf4 {[%emt 0:09:19]} Qd6 {[%emt 0:04:52]} 12. Nh5 {[%emt 0:03:10]} Bh6 {[%emt 0:02:52]} 13. Be2 {[%emt 0:02:28]} b6 {[%emt 0:06:16]} 14. O-O {[%emt 0:01:25]} Kh8 {[%emt 0:01:43]} 15. Bf3 {[%emt 0:03:10]} Ba6 {[%emt 0:01:53]} 16. Re1 {[%emt 0:01:01]} Rad8 {[%emt 0:01:32]} 17. Qc2 {[%emt 0:17:32]} Ne7 {[%emt 0:03:53]} 18. g3 {[%emt 0:03:38]} Rg8 {[%emt 0:04:56]} 19. Nc1 {[%emt 0:02:15]} Rg5 {[%emt 0:07:43]} 20. Nd3 {[%emt 0:11:30]} Ng6 {[%emt 0:05:14]} 21. Ne5 {[%emt 0:01:36]} Qc7 {[%emt 0:03:26]} 22. Qa4 {[%emt 0:10:18]} Nxe5 {[%emt 0:06:39]} 23. dxe5 {[%emt 0:02:29]} Bd3 {[%emt 0:02:26]} 24. Nf6 {[%emt 0:01:44]} b5 {[%emt 0:02:59]} 25. Qh4 {[%emt 0:01:06]} Rg6 {[%emt 0:01:45]} 26. Rad1 {[%emt 0:01:13]} Qc4 {[%emt 0:02:59]} 27. Qxc4 {[%emt 0:01:52]} bxc4 {[%emt 0:00:12]} 28. b3 {[%emt 0:01:04]} Bg5 {[%emt 0:01:36]} 29. bxc4 {[%emt 0:00:28]} Bxf6 {[%emt 0:01:05]} 30. exf6 {[%emt 0:00:17]} Rgg8 {[%emt 0:01:11]} 31. c5 {[%emt 0:00:25]} Bc2 {[%emt 0:03:46]} 32. Rxd8 {[%emt 0:00:39]} Rxd8 {[%emt 0:00:03]} 33. Bb7 {[%emt 0:03:02]} Rd3 {[%emt 0:00:55]} 34. Re3 {[%emt 0:02:20]} Rd7 {[%emt 0:00:47]} 35. c6 {[%emt 0:02:36]} Rc7 {[%emt 0:00:04]} 36. Re2 {[%emt 0:04:44]} 1-0

[Event "NOR-ch Various 2019"]
[Site "Larvik"]
[Date "2019.07.11"]
[Round "7.37"]
[White "Lund, Gunnar"]
[Black "Fossan, Andreas"]
[Result "1-0"]
[ECO "A07"]
[WhiteElo "2285"]
[BlackElo "2023"]
[Annotator "NA"]
[PlyCount "87"]
[EventDate "2019.07.06"]
[EventType "swiss"]
[EventCountry "NOR"]
[SourceTitle "playchess.com"]
[Source "ChessBase"]
[SourceQuality "1"]
[TimeControl "40/5400+30:1800+30"]

1. Nf3 {[%emt 0:00:00]} Nf6 {[%emt 0:00:18]} 2. g3 {[%emt 0:00:00]} d5 {[%emt 0:01:48]} 3. Bg2 {[%emt 0:01:33]} Bf5 {[%emt 0:02:55]} 4. O-O {[%emt 0:07:30]} c6 {[%emt 0:01:00]} 5. d3 {[%emt 0:02:44]} e6 {[%emt 0:05:32]} 6. Nbd2 {[%emt 0:03:01]} Nbd7 {[%emt 0:02:56]} 7. b3 {[%emt 0:04:29]} Be7 {[%emt 0:09:44]} 8. Bb2 {[%emt 0:00:15]} O-O {[%emt 0:00:32]} 9. Re1 {[%emt 0:03:49]} Nc5 {[%emt 0:11:28]} 10. Ne5 {[%emt 0:02:06]} h6 {[%emt 0:03:50]} 11. e4 {[%emt 0:02:49]} Bh7 {[%emt 0:01:33]} 12. Qe2 {[%emt 0:02:57]} a5 {[%emt 0:04:13]} 13. a4 {[%emt 0:01:51]} Qc7 {[%emt 0:06:51]} 14. f4 {[%emt 0:02:23]} Rad8 {[%emt 0:08:36]} 15. Kh1 {[%emt 0:04:03]} Rfe8 {[%emt 0:06:35]} 16. Rad1 {[%emt 0:02:24]} Qb6 {[%emt 0:04:09]} 17. Bc3 {[%emt 0:02:30]} Bd6 {[%emt 0:03:40]} 18. Rf1 {[%emt 0:08:44]} Qc7 {[%emt 0:01:41]} 19. Ba1 {[%emt 0:01:18]} Rb8 {[%emt 0:04:49]} 20. Rde1 {[%emt 0:04:22]} Nfd7 {[%emt 0:06:32]} 21. Ng4 {[%emt 0:05:05]} Bg6 {[%emt 0:08:21]} 22. Ne3 {[%emt 0:01:39]} b5 {[%emt 0:02:18]} 23. axb5 {[%emt 0:00:36]} dxe4 {[%emt 0:01:20]} 24. d4 {[%emt 0:03:29]} Nb7 {[%emt 0:00:19]} 25. Nxe4 {[%emt 0:08:44]} cxb5 {[%emt 0:00:29]} 26. Nc3 {[%emt 0:01:26]} Qd8 {[%emt 0:00:51]} 27. Nxb5 {[%emt 0:00:41]} Bf8 {[%emt 0:00:33]} 28. Nc4 {[%emt 0:04:53]} Nf6 {[%emt 0:00:28]} 29. Ne5 {[%emt 0:00:52]} Bb4 {[%emt 0:00:29]} 30. c3 {[%emt 0:00:20]} Bf8 {[%emt 0:00:34]} 31. Nc6 {[%emt 0:00:14]} Qb6 {[%emt 0:00:01]} 32. Nxb8 {[%emt 0:00:36]} Rxb8 {[%emt 0:00:01]} 33. c4 {[%emt 0:00:40]} Bb4 {[%emt 0:00:12]} 34. Rd1 {[%emt 0:00:50]} Bf5 {[%emt 0:01:13]} 35. h3 {[%emt 0:00:24]} h5 {[%emt 0:00:08]} 36. d5 {[%emt 0:02:56]} Re8 {[%emt 0:01:28]} 37. Bxf6 {[%emt 0:01:02]} gxf6 38. Qxh5 {[%emt 0:00:32]} Bc2 {[%emt 0:00:57]} 39. dxe6 {[%emt 0:00:35]} Rxe6 {[%emt 0:00:33]} 40. Rd7 {[%emt 0:01:38]} Nd8 {[%emt 0:00:27]} 41. Qd5 {[%emt 0:34:55]} Nc6 {[%emt 0:13:47]} 42. f5 {[%emt 0:00:00]} Re1 {[%emt 0:09:02]} 43. Qxf7+ {[%emt 0:00:00]} Kh8 {[%emt 0:00:08]} 44. Qg7# {[%emt 0:00:00]} 1-0

[Event "NOR-ch Various 2019"]
[Site "Larvik"]
[Date "2019.07.11"]
[Round "7.38"]
[White "Skotheim, Andreas"]
[Black "Rasmussen, Jonas H"]
[Result "1-0"]
[ECO "D15"]
[WhiteElo "2138"]
[BlackElo "2017"]
[Annotator "NA"]
[PlyCount "75"]
[EventDate "2019.07.06"]
[EventType "swiss"]
[EventCountry "NOR"]
[SourceTitle "playchess.com"]
[Source "ChessBase"]
[SourceQuality "1"]
[TimeControl "40/5400+30:1800+30"]

1. d4 {[%emt 0:00:00]} d5 {[%emt 0:00:00]} 2. c4 {[%emt 0:00:36]} c6 {[%emt 0:00:00]} 3. Nf3 {[%emt 0:00:19]} Nf6 {[%emt 0:00:00]} 4. Nc3 {[%emt 0:00:43]} a6 {[%emt 0:00:30]} 5. e3 {[%emt 0:01:59]} b5 {[%emt 0:02:29]} 6. b3 {[%emt 0:01:20]} Bg4 {[%emt 0:01:17]} 7. Qc2 {[%emt 0:01:26]} e6 {[%emt 0:03:49]} 8. Bd3 {[%emt 0:02:07]} Bh5 {[%emt 0:04:19]} 9. Bb2 {[%emt 0:10:21]} Bg6 {[%emt 0:06:58]} 10. Ne5 {[%emt 0:15:16]} Bd6 {[%emt 0:04:56]} 11. Nxg6 {[%emt 0:05:19]} hxg6 {[%emt 0:00:10]} 12. h3 {[%emt 0:01:38]} Nbd7 {[%emt 0:06:21]} 13. O-O-O {[%emt 0:18:23]} Qa5 {[%emt 0:17:07]} 14. c5 {[%emt 0:02:49]} Be7 {[%emt 0:02:06]} 15. Kb1 {[%emt 0:03:41]} Qc7 {[%emt 0:05:59]} 16. f4 {[%emt 0:03:29]} O-O-O {[%emt 0:05:33]} 17. Qf2 {[%emt 0:02:35]} Kb7 {[%emt 0:14:54]} 18. a3 {[%emt 0:01:32]} Ng8 {[%emt 0:03:53]} 19. Rc1 {[%emt 0:02:52]} f5 {[%emt 0:03:24]} 20. g4 {[%emt 0:01:41]} Nh6 {[%emt 0:02:44]} 21. Qg2 {[%emt 0:04:45]} Rdg8 {[%emt 0:01:06]} 22. g5 {[%emt 0:01:11]} Nf7 {[%emt 0:00:06]} 23. h4 {[%emt 0:00:40]} Nf8 {[%emt 0:01:56]} 24. Be2 {[%emt 0:02:06]} Qd7 {[%emt 0:01:07]} 25. Qf1 {[%emt 0:02:05]} Ka7 {[%emt 0:00:34]} 26. Na2 {[%emt 0:01:29]} Qc8 {[%emt 0:00:22]} 27. Bc3 {[%emt 0:00:56]} Bd8 {[%emt 0:01:05]} 28. a4 {[%emt 0:00:59]} Nd7 {[%emt 0:01:26]} 29. Kc2 {[%emt 0:01:14]} Be7 {[%emt 0:03:09]} 30. Nb4 {[%emt 0:02:12]} a5 {[%emt 0:01:24]} 31. Nxc6+ {[%emt 0:00:54]} Qxc6 {[%emt 0:00:08]} 32. axb5 {[%emt 0:00:25]} Qc7 {[%emt 0:02:01]} 33. Bxa5 {[%emt 0:00:53]} Qc8 {[%emt 0:02:37]} 34. Kb2 {[%emt 0:02:44]} Nd8 {[%emt 0:01:22]} 35. b6+ {[%emt 0:02:16]} Kb8 {[%emt 0:00:36]} 36. c6 {[%emt 0:01:03]} Nxc6 {[%emt 0:01:11]} 37. Ba6 {[%emt 0:01:09]} Qe8 {[%emt 0:01:12]} 38. Rxc6 {[%emt 0:00:26]} 1-0

[Event "NOR-ch Various 2019"]
[Site "Larvik"]
[Date "2019.07.11"]
[Round "7.39"]
[White "Shehzad, Shazil"]
[Black "Kvam, Audun"]
[Result "1-0"]
[ECO "B31"]
[WhiteElo "2088"]
[BlackElo "2017"]
[Annotator "NA"]
[PlyCount "45"]
[EventDate "2019.07.06"]
[EventType "swiss"]
[EventCountry "NOR"]
[SourceTitle "playchess.com"]
[Source "ChessBase"]
[SourceQuality "1"]
[TimeControl "40/5400+30:1800+30"]

1. e4 {[%emt 0:02:21]} c5 {[%emt 0:01:21]} 2. Nf3 {[%emt 0:00:06]} Nc6 {[%emt 0:00:04]} 3. Bb5 {[%emt 0:00:04]} g6 {[%emt 0:00:10]} 4. O-O {[%emt 0:00:08]} Bg7 {[%emt 0:00:27]} 5. Re1 {[%emt 0:00:06]} a6 {[%emt 0:03:06]} 6. Bxc6 {[%emt 0:00:43]} dxc6 {[%emt 0:00:05]} 7. d3 {[%emt 0:00:16]} e5 {[%emt 0:00:48]} 8. Be3 {[%emt 0:00:08]} b6 {[%emt 0:00:25]} 9. a3 {[%emt 0:00:07]} a5 {[%emt 0:00:47]} 10. Nbd2 {[%emt 0:00:22]} Qc7 {[%emt 0:07:02]} 11. b4 {[%emt 0:09:26]} cxb4 {[%emt 0:35:11]} 12. axb4 {[%emt 0:01:31]} Nf6 {[%emt 0:01:43]} 13. Nc4 {[%emt 0:03:15]} Nd7 {[%emt 0:04:31]} 14. bxa5 {[%emt 0:00:35]} bxa5 {[%emt 0:00:26]} 15. Qd2 {[%emt 0:00:21]} a4 {[%emt 0:06:47]} 16. Qb4 {[%emt 0:01:42]} Bf8 {[%emt 0:04:13]} 17. Qc3 {[%emt 0:01:45]} f6 {[%emt 0:04:34]} 18. d4 {[%emt 0:02:52]} exd4 {[%emt 0:09:11]} 19. Nxd4 {[%emt 0:03:06]} Ne5 {[%emt 0:06:25]} 20. Nxe5 {[%emt 0:06:31]} fxe5 {[%emt 0:00:09]} 21. Nb5 {[%emt 0:04:31]} Qb8 {[%emt 0:09:57]} 22. Qxc6+ {[%emt 0:00:45]} Bd7 {[%emt 0:00:04]} 23. Qxa8 {[%emt 0:01:23]} 1-0

[Event "NOR-ch Various 2019"]
[Site "Larvik"]
[Date "2019.07.11"]
[Round "7.40"]
[White "Grover, Sigurd Loe"]
[Black "Machlik, Monika"]
[Result "0-1"]
[ECO "B10"]
[WhiteElo "2052"]
[BlackElo "2083"]
[Annotator "NA"]
[PlyCount "76"]
[EventDate "2019.07.06"]
[EventType "swiss"]
[EventCountry "NOR"]
[SourceTitle "playchess.com"]
[Source "ChessBase"]
[SourceQuality "1"]
[TimeControl "40/5400+30:1800+30"]

1. e4 {[%emt 0:00:00]} c6 {[%emt 0:00:00]} 2. c4 {[%emt 0:00:00]} d5 {[%emt 0:00:00]} 3. exd5 {[%emt 0:00:07]} cxd5 {[%emt 0:00:00]} 4. cxd5 {[%emt 0:00:10]} Nf6 {[%emt 0:00:00]} 5. Nc3 {[%emt 0:00:05]} Nxd5 {[%emt 0:00:46]} 6. Nf3 {[%emt 0:00:09]} Nc6 {[%emt 0:00:18]} 7. Bb5 {[%emt 0:00:08]} e6 {[%emt 0:00:37]} 8. O-O {[%emt 0:00:09]} Be7 {[%emt 0:00:08]} 9. Re1 {[%emt 0:00:07]} O-O {[%emt 0:00:10]} 10. d4 {[%emt 0:00:05]} Bd7 {[%emt 0:00:43]} 11. a3 {[%emt 0:01:40]} Rc8 {[%emt 0:00:15]} 12. Bd3 {[%emt 0:01:16]} Re8 {[%emt 0:01:02]} 13. Bc2 {[%emt 0:03:05]} Nxc3 {[%emt 0:27:56]} 14. bxc3 {[%emt 0:01:27]} Bf6 {[%emt 0:06:09]} 15. Ne5 {[%emt 0:09:44]} g6 {[%emt 0:18:23]} 16. Ng4 {[%emt 0:06:15]} Bg7 {[%emt 0:01:22]} 17. Nh6+ {[%emt 0:06:06]} Bxh6 {[%emt 0:00:46]} 18. Bxh6 {[%emt 0:00:05]} Ne7 {[%emt 0:04:43]} 19. Qd2 {[%emt 0:14:37]} Qa5 {[%emt 0:10:48]} 20. Qf4 {[%emt 0:14:33]} Nd5 {[%emt 0:03:47]} 21. Qh4 {[%emt 0:03:47]} Qxc3 {[%emt 0:01:12]} 22. Rac1 {[%emt 0:07:10]} Qxa3 {[%emt 0:04:18]} 23. Be4 {[%emt 0:08:12]} Qd6 {[%emt 0:04:21]} 24. Rb1 {[%emt 0:10:12]} Bc6 {[%emt 0:00:49]} 25. Re3 {[%emt 0:01:12]} Nxe3 {[%emt 0:05:04]} 26. fxe3 {[%emt 0:03:10]} f5 {[%emt 0:01:44]} 27. Bxc6 {[%emt 0:04:12]} Qxc6 {[%emt 0:00:56]} 28. Bf4 {[%emt 0:02:59]} Qd7 {[%emt 0:01:09]} 29. Rf1 {[%emt 0:01:38]} Rc2 {[%emt 0:01:38]} 30. h3 {[%emt 0:00:32]} Qd5 {[%emt 0:01:45]} 31. Rf3 {[%emt 0:00:27]} Qd7 {[%emt 0:03:02]} 32. Be5 {[%emt 0:01:05]} Qf7 {[%emt 0:00:14]} 33. Rg3 {[%emt 0:00:49]} a5 {[%emt 0:00:24]} 34. Qh6 {[%emt 0:00:51]} Re7 {[%emt 0:01:42]} 35. h4 {[%emt 0:00:33]} Qf8 {[%emt 0:00:35]} 36. Rxg6+ {[%emt 0:00:42]} hxg6 {[%emt 0:00:10]} 37. Qxg6+ {[%emt 0:00:35]} Rg7 {[%emt 0:00:03]} 38. Qxe6+ {[%emt 0:00:17]} Qf7 {[%emt 0:00:40]} 0-1

[Event "NOR-ch Various 2019"]
[Site "Larvik"]
[Date "2019.07.11"]
[Round "7.41"]
[White "Skagseth, Havard M"]
[Black "Lobersli, Henrik Oie"]
[Result "1-0"]
[ECO "B48"]
[WhiteElo "2002"]
[BlackElo "2046"]
[Annotator "NA"]
[PlyCount "67"]
[EventDate "2019.07.06"]
[EventType "swiss"]
[EventCountry "NOR"]
[SourceTitle "playchess.com"]
[Source "ChessBase"]
[SourceQuality "1"]
[TimeControl "40/5400+30:1800+30"]

1. e4 {[%emt 0:00:00]} c5 {[%emt 0:01:17]} 2. Nf3 {[%emt 0:00:00]} e6 {[%emt 0:00:24]} 3. d4 {[%emt 0:00:15]} cxd4 {[%emt 0:00:20]} 4. Nxd4 {[%emt 0:00:04]} Nc6 {[%emt 0:00:22]} 5. Be3 {[%emt 0:00:13]} Qc7 {[%emt 0:01:49]} 6. Nc3 {[%emt 0:01:01]} a6 {[%emt 0:00:38]} 7. Qd2 {[%emt 0:01:30]} Nf6 {[%emt 0:00:33]} 8. f3 {[%emt 0:00:09]} Bb4 {[%emt 0:03:06]} 9. g4 {[%emt 0:09:08]} h6 {[%emt 0:09:48]} 10. a3 {[%emt 0:03:58]} Bxc3 {[%emt 0:03:32]} 11. Qxc3 {[%emt 0:00:30]} d5 {[%emt 0:01:28]} 12. Nxc6 {[%emt 0:07:35]} Qxc6 {[%emt 0:02:04]} 13. Qxc6+ {[%emt 0:00:35]} bxc6 {[%emt 0:00:06]} 14. exd5 {[%emt 0:00:30]} cxd5 {[%emt 0:01:03]} 15. h3 {[%emt 0:04:13]} O-O {[%emt 0:07:19]} 16. O-O-O {[%emt 0:01:06]} Bb7 {[%emt 0:10:35]} 17. Bd4 {[%emt 0:03:28]} Nd7 {[%emt 0:12:11]} 18. b3 {[%emt 0:04:11]} e5 {[%emt 0:03:02]} 19. Bb2 {[%emt 0:00:13]} d4 {[%emt 0:04:18]} 20. Bg2 {[%emt 0:02:20]} Rac8 {[%emt 0:02:35]} 21. Rh2 {[%emt 0:08:04]} g5 {[%emt 0:01:24]} 22. h4 {[%emt 0:00:31]} f6 {[%emt 0:02:24]} 23. hxg5 {[%emt 0:00:27]} hxg5 {[%emt 0:00:07]} 24. Rdh1 {[%emt 0:02:08]} Kf7 {[%emt 0:00:54]} 25. Rh7+ {[%emt 0:01:57]} Ke6 {[%emt 0:01:47]} 26. Rxd7 {[%emt 0:00:44]} Kxd7 {[%emt 0:01:28]} 27. Rh7+ {[%emt 0:00:06]} Kc6 {[%emt 0:00:46]} 28. f4+ {[%emt 0:00:06]} Kd6 {[%emt 0:00:09]} 29. fxe5+ {[%emt 0:01:39]} Kxe5 {[%emt 0:03:00]} 30. Bxb7 {[%emt 0:00:59]} Rce8 {[%emt 0:02:47]} 31. Rd7 {[%emt 0:02:10]} Rd8 {[%emt 0:02:58]} 32. Re7+ {[%emt 0:01:01]} Kf4 {[%emt 0:01:13]} 33. Re4+ {[%emt 0:00:12]} Kg3 {[%emt 0:00:06]} 34. Bxd4 {[%emt 0:01:54]} 1-0

[Event "NOR-ch Various 2019"]
[Site "Larvik"]
[Date "2019.07.12"]
[Round "8.1"]
[White "Smeby, Ole"]
[Black "Hamre, Einar"]
[Result "1/2-1/2"]
[ECO "D12"]
[WhiteElo "1887"]
[BlackElo "1944"]
[Annotator "NA"]
[PlyCount "102"]
[EventDate "2019.07.06"]
[EventType "swiss"]
[EventCountry "NOR"]
[SourceTitle "playchess.com"]
[Source "ChessBase"]
[SourceQuality "1"]
[TimeControl "40/5400+30:1800+30"]

1. d4 {[%emt 0:00:00]} d5 {[%emt 0:01:36]} 2. c4 {[%emt 0:00:00]} c6 {[%emt 0:00:06]} 3. e3 {[%emt 0:00:00]} Nf6 {[%emt 0:00:59]} 4. Nf3 {[%emt 0:00:00]} Bf5 {[%emt 0:00:32]} 5. Bd3 {[%emt 0:00:09]} Bg6 {[%emt 0:07:13]} 6. O-O {[%emt 0:00:19]} e6 {[%emt 0:00:13]} 7. Nc3 {[%emt 0:00:09]} Nbd7 {[%emt 0:01:07]} 8. cxd5 {[%emt 0:05:19]} exd5 {[%emt 0:06:21]} 9. Qc2 {[%emt 0:05:58]} Bd6 {[%emt 0:08:07]} 10. e4 {[%emt 0:03:09]} dxe4 {[%emt 0:01:05]} 11. Nxe4 {[%emt 0:00:11]} Nxe4 {[%emt 0:01:15]} 12. Bxe4 {[%emt 0:00:08]} Nf6 {[%emt 0:12:18]} 13. Bd3 {[%emt 0:06:51]} Nd5 {[%emt 0:15:16]} 14. Re1+ {[%emt 0:00:30]} Kf8 {[%emt 0:02:00]} 15. a3 {[%emt 0:02:26]} Qc7 {[%emt 0:06:52]} 16. Bxg6 {[%emt 0:09:05]} hxg6 {[%emt 0:00:23]} 17. g3 {[%emt 0:01:19]} Qd7 {[%emt 0:01:53]} 18. Qe2 {[%emt 0:04:28]} Qg4 {[%emt 0:04:42]} 19. Qe4 {[%emt 0:13:03]} Qh3 {[%emt 0:02:45]} 20. Nh4 {[%emt 0:03:56]} Nf6 {[%emt 0:02:50]} 21. Qg2 {[%emt 0:00:20]} Qg4 {[%emt 0:00:42]} 22. Nf3 {[%emt 0:02:13]} Rh5 {[%emt 0:03:24]} 23. Bd2 {[%emt 0:05:06]} Qd7 {[%emt 0:04:39]} 24. Bc3 {[%emt 0:02:46]} Nd5 {[%emt 0:01:15]} 25. Bd2 {[%emt 0:01:38]} f6 {[%emt 0:01:28]} 26. Re4 {[%emt 0:02:36]} g5 {[%emt 0:01:46]} 27. Rae1 {[%emt 0:05:53]} Kf7 {[%emt 0:02:40]} 28. Ne5+ {[%emt 0:10:30]} fxe5 {[%emt 0:01:48]} 29. dxe5 {[%emt 0:00:10]} Bxe5 {[%emt 0:01:35]} 30. Rxe5 {[%emt 0:00:19]} Rah8 {[%emt 0:00:59]} 31. Qf3+ {[%emt 0:01:13]} Nf6 {[%emt 0:01:12]} 32. Re7+ {[%emt 0:08:10]} Qxe7 {[%emt 0:00:07]} 33. Rxe7+ {[%emt 0:00:07]} Kxe7 {[%emt 0:00:04]} 34. Qe2+ {[%emt 0:00:51]} Kf7 {[%emt 0:00:24]} 35. Qc4+ {[%emt 0:00:09]} Nd5 {[%emt 0:00:15]} 36. Qd3 {[%emt 0:01:09]} g4 {[%emt 0:01:43]} 37. Qc4 {[%emt 0:02:31]} Rxh2 {[%emt 0:00:41]} 38. Qxg4 {[%emt 0:00:26]} Rh1+ {[%emt 0:01:20]} 39. Kg2 {[%emt 0:00:06]} R8h2+ {[%emt 0:00:20]} 40. Kf3 {[%emt 0:00:16]} Rf1 {[%emt 0:00:34]} 41. Qd7+ {[%emt 0:30:30]} Kg8 {[%emt 0:31:55]} 42. Qe6+ {[%emt 0:00:55]} Kf8 {[%emt 0:00:33]} 43. Qc8+ {[%emt 0:00:16]} Kf7 {[%emt 0:00:22]} 44. Qxb7+ {[%emt 0:00:13]} Kg8 {[%emt 0:00:30]} 45. Qc8+ {[%emt 0:00:22]} Kh7 {[%emt 0:00:23]} 46. Qf5+ {[%emt 0:00:16]} Kg8 {[%emt 0:00:24]} 47. Qe6+ {[%emt 0:00:14]} Kh8 {[%emt 0:00:42]} 48. Qc8+ {[%emt 0:00:12]} Kh7 {[%emt 0:00:21]} 49. Qe8 {[%emt 0:00:16]} g6 {[%emt 0:00:04]} 50. Qe4 Kh8 {[%emt 0:01:16]} 51. Qxd5 {[%emt 0:00:25]} Kh7 1/2-1/2